bitfinex/quotes_ETHUSD_20220123
["timestamp","ask_amount","ask_price","bid_price","bid_amount"]
[1642928306904,1.90391557,2508.3,2507.4,1.1772]
[1642928307167,0.1884082,2507.5,2507.2,7.4555]
[1642928307355,0.0098358,2508.1,2507.1,0.9878]
[1642928307554,1.50335403,2507.9,2507.1,0.9878]
[1642928307755,0.3,2508.1,2507.1,0.9878]
[1642928308158,0.66385181,2508.0,2507.1,0.9878]
[1642928308357,1.43324963,2506.7,2506.5,3.18043298]
[1642928308556,1.43324963,2506.7,2506.0,0.0127789]
[1642928308557,1.43324963,2506.7,2506.2,5.18043298]
[1642928308761,1.43324963,2506.7,2506.2,2.0]
[1642928309155,1.43324963,2506.7,2506.2,5.18043298]
[1642928309360,0.577,2507.2,2506.2,3.18043298]
[1642928309661,1.0,2508.0,2506.2,3.37808808]
[1642928309865,0.3,2507.6,2506.4,1.5]
[1642928310063,0.3,2507.6,2506.5,6.85883298]
[1642928310259,15.2467,2507.8,2506.5,6.85883298]
[1642928310260,16.72265881,2507.8,2506.8,1.46132978]
[1642928310461,9.90995881,2507.8,2506.8,1.46132978]
[1642928310659,8.77165881,2507.8,2506.8,1.46132978]
[1642928310899,8.77165881,2507.8,2506.5,6.85883298]
[1642928311202,8.77165881,2507.8,2506.5,3.6784]
[1642928311203,1.0,2507.7,2506.5,3.6784]
[1642928311801,1.19902734,2506.9,2506.5,6.55593074]
[1642928312002,1.19902734,2506.9,2506.5,3.6784]
[1642928312201,1.19902734,2506.9,2506.4,1.5]
[1642928313506,1.79902734,2506.9,2506.4,1.5]
[1642928313801,2.37602734,2506.9,2506.4,1.5]
[1642928314401,1.17567394,2506.8,2506.4,1.5]
[1642928314649,1.47567394,2506.8,2506.4,1.5]
[1642928317060,2.47567394,2506.8,2506.4,1.5]
[1642928317555,5.1,2506.7,2505.8,2.0]
[1642928317760,0.29329643,2505.9,2505.8,2.0]
[1642928317958,2.94329643,2505.9,2505.8,2.0]
[1642928318410,2.94329643,2505.9,2505.2,2.0]
[1642928318808,0.29329643,2505.9,2505.2,2.0]
[1642928319407,0.29329643,2505.9,2505.3,2.0]
[1642928320612,1.877,2506.3,2505.3,1.95]
[1642928320813,1.2256,2506.4,2505.3,1.95]
[1642928321415,1.5256,2506.4,2505.5,2.0]
[1642928321614,0.3,2506.4,2505.5,2.0]
[1642928321818,1.35840743,2506.2,2505.5,2.0]
[1642928322016,1.65840743,2506.2,2505.5,2.0]
[1642928322452,1.65840743,2506.2,2505.3,2.0]
[1642928323052,1.65840743,2506.2,2505.3,3.52061525]
[1642928323252,1.35840743,2506.2,2505.3,3.52061525]
[1642928323452,1.35840743,2506.2,2505.4,1.0]
[1642928323652,1.87585,2506.6,2505.4,1.0]
[1642928323854,2.87585,2506.6,2505.3,3.52061525]
[1642928324053,3.17585,2506.6,2505.4,1.01204201]
[1642928324456,2.17585,2506.6,2505.4,3.01204201]
[1642928324855,1.47339665,2506.4,2505.4,3.01204201]
[1642928325256,2.17585,2506.6,2505.4,3.01204201]
[1642928325459,0.3,2506.6,2505.6,2.0]
[1642928325658,0.99869,2507.0,2505.6,2.0]
[1642928325659,3.1345,2507.2,2505.7,3.90686752]
[1642928325903,3.6409,2507.6,2505.7,3.90686752]
[1642928325904,11.9673,2507.6,2506.0,0.01293136]
[1642928326105,8.3264,2507.6,2506.0,0.58993136]
[1642928326305,1.24695001,2507.1,2506.1,7.52675552]
[1642928326505,1.24695001,2507.1,2506.4,1.5420242]
[1642928326908,1.24695001,2507.1,2506.2,4.09199059]
[1642928328108,1.24695001,2507.1,2506.2,3.09199059]
[1642928328307,1.24695001,2507.1,2506.4,1.25152955]
[1642928328808,9.32484,2507.6,2506.4,1.25152955]
[1642928329008,9.32484,2507.6,2506.5,2.95280751]
[1642928329209,8.3264,2507.6,2506.5,2.95280751]
[1642928329408,7.1068,2507.6,2506.6,1.01291576]
[1642928329663,1.61883883,2507.7,2507.3,1.21019203]
[1642928329856,1.61883883,2507.7,2506.7,3.27091488]
[1642928330856,1.61883883,2507.7,2506.8,1.33422085]
[1642928331059,1.61883883,2507.7,2506.6,1.16991576]
[1642928331259,2.61724883,2507.7,2506.6,0.01291576]
[1642928331656,2.61724883,2507.7,2506.6,3.02674242]
[1642928331859,2.61724883,2507.7,2506.6,2.90238539]
[1642928332261,2.61724883,2507.7,2506.7,1.22235602]
[1642928333059,2.91724883,2507.7,2506.7,1.22235602]
[1642928333903,2.81100307,2507.7,2506.7,1.22235602]
[1642928336712,2.81100307,2507.7,2506.5,3.95509997]
[1642928336713,0.06161214,2506.9,2506.5,3.8669]
[1642928336912,0.06161214,2506.9,2506.0,2.0]
[1642928336913,0.06161214,2506.9,2506.1,11.3671]
[1642928337163,0.06161214,2506.9,2506.2,5.9101]
[1642928337657,0.3,2507.2,2506.2,5.9101]
[1642928337854,0.3,2507.2,2506.4,1.34308444]
[1642928338055,0.3,2507.2,2506.2,5.9101]
[1642928339059,1.24517633,2506.6,2506.2,5.9101]
[1642928339258,1.24517633,2506.6,2506.1,8.61829432]
[1642928340459,1.24517633,2506.6,2506.1,7.48]
[1642928343406,1.24517633,2506.6,2505.8,4.10071529]
[1642928343907,1.24517633,2506.6,2505.8,4.09281351]
[1642928344106,1.0,2507.1,2505.9,1.0]
[1642928344310,1.0,2507.1,2506.0,3.00549624]
[1642928344514,1.6,2507.1,2506.0,3.00549624]
[1642928344750,1.6,2507.1,2505.8,4.1452148]
[1642928344955,1.6,2507.1,2505.8,1.26520841]
[1642928345362,1.48215155,2506.4,2505.8,1.26520841]
[1642928345753,1.6,2507.1,2505.8,1.26520841]
[1642928345958,1.6,2507.1,2505.8,4.14599435]
[1642928346158,1.6,2507.1,2505.8,1.26520841]
[1642928346857,1.47534015,2506.4,2505.8,1.26520841]
[1642928347158,1.6,2507.1,2505.8,1.26520841]
[1642928347961,1.4146951,2506.5,2505.8,4.08061829]
[1642928348263,1.4146951,2506.5,2505.8,4.05217592]
[1642928348706,1.41370609,2506.5,2505.8,4.05217592]
[1642928349104,1.41370609,2506.5,2505.8,1.26520841]
[1642928349806,1.41370609,2506.5,2505.8,4.06400219]
[1642928352251,1.41370609,2506.5,2505.8,3.86400219]
[1642928353261,1.41370609,2506.5,2505.8,1.06520841]
[1642928353455,2.2298,2506.9,2505.8,1.06520841]
[1642928353654,1.8298,2506.9,2505.8,3.96268892]
[1642928353855,2.8298,2506.9,2505.8,3.96268892]
[1642928354554,1.49133476,2506.7,2505.8,3.96268892]
[1642928355157,1.49133476,2506.7,2505.8,4.26268892]
[1642928355357,1.49133476,2506.7,2505.9,1.0]
[1642928355555,1.49133476,2506.7,2505.8,3.96268892]
[1642928355759,1.2298,2506.9,2506.2,1.4625026]
[1642928356010,1.47490735,2507.1,2506.2,1.4625026]
[1642928356308,1.47490735,2507.1,2505.9,1.138]
[1642928356506,3.07490735,2507.1,2505.9,1.138]
[1642928356709,1.25674667,2506.6,2505.9,1.138]
[1642928357006,1.25674667,2506.6,2505.8,2.89748051]
[1642928357208,1.25674667,2506.6,2505.7,7.6594]
[1642928357409,1.25674667,2506.6,2505.7,7.9594]
[1642928357610,1.25674667,2506.6,2505.9,1.22684468]
[1642928358813,1.0,2507.0,2505.9,1.22684468]
[1642928359012,1.6,2507.1,2505.9,1.22684468]
[1642928359214,1.6,2507.1,2506.0,2.82776639]
[1642928359413,1.6,2507.1,2506.0,2.85498917]
[1642928359651,1.6,2507.1,2506.0,2.84553878]
[1642928360056,1.49133476,2506.7,2506.0,2.84553878]
[1642928360258,1.49133476,2506.7,2505.9,2.22684468]
[1642928360456,1.49133476,2506.7,2505.9,1.22684468]
[1642928361063,0.3,2507.1,2506.3,1.32905694]
[1642928361261,5.2670545,2507.2,2506.4,2.81027643]
[1642928361262,3.2144,2507.2,2506.4,2.81027643]
[1642928361467,12.20069042,2507.7,2506.4,2.81027643]
[1642928361468,11.62369042,2507.7,2506.4,2.81027643]
[1642928361662,3.94973042,2507.7,2506.5,1.3]
[1642928361860,3.94973042,2507.7,2506.6,3.09226685]
[1642928362061,1.22100977,2507.6,2506.6,3.09226685]
[1642928362278,1.22100977,2507.6,2506.7,1.0]
[1642928362462,1.22100977,2507.6,2507.1,1.17516975]
[1642928363262,0.1881272,2507.7,2507.1,1.17516975]
[1642928364328,0.1881272,2507.7,2507.2,1.9214251]
[1642928364329,1.38214883,2507.5,2507.2,1.9214251]
[1642928364530,4.3277,2508.1,2507.2,1.9214251]
[1642928364736,3.7261,2508.1,2507.2,1.9214251]
[1642928365635,3.7261,2508.1,2507.1,1.17516975]
[1642928366434,4.14302396,2508.1,2507.5,1.31101641]
[1642928366635,3.991,2508.2,2507.1,4.8283]
[1642928366835,4.291,2508.2,2507.1,3.8283]
[1642928367035,1.31771573,2507.9,2507.1,3.8283]
[1642928367655,1.31771573,2507.9,2507.4,1.43146586]
[1642928367854,3.991,2508.2,2507.4,1.43146586]
[1642928368053,4.291,2508.2,2507.5,1.91757952]
[1642928368654,0.3,2508.2,2507.5,1.91757952]
[1642928368862,3.1388,2508.3,2507.5,1.91757952]
[1642928368863,1.49133476,2507.9,2507.5,1.91757952]
[1642928369258,1.49133476,2507.9,2507.2,1.0]
[1642928369259,1.49133476,2507.9,2507.3,1.91757952]
[1642928369458,3.4388,2508.3,2507.4,1.52003605]
[1642928370557,1.0,2508.2,2507.1,3.8283]
[1642928371427,1.0,2508.2,2507.4,1.16292642]
[1642928371621,3.7388,2508.3,2507.4,1.16292642]
[1642928371821,3.7388,2508.3,2507.5,2.87835447]
[1642928372022,3.4388,2508.3,2507.5,2.87835447]
[1642928372320,0.20844958,2508.5,2507.5,2.87195101]
[1642928372523,0.20844958,2508.5,2508.0,1.35045165]
[1642928372722,0.04999999,2508.7,2508.0,1.35045165]
[1642928372923,0.20181785,2508.5,2508.0,1.35045165]
[1642928373124,0.04999999,2508.7,2508.0,1.35045165]
[1642928373721,0.04999999,2508.7,2508.0,1.34906101]
[1642928375166,5.0787,2509.1,2508.1,3.1735539]
[1642928375167,6.31856783,2509.1,2508.1,3.1735539]
[1642928375562,6.31856783,2509.1,2508.2,1.0]
[1642928375563,3.908,2509.1,2508.2,1.0]
[1642928376062,3.908,2509.1,2508.5,1.36353558]
[1642928376262,12.4391,2509.7,2508.5,1.36353558]
[1642928376467,7.0187,2509.7,2508.5,1.36353558]
[1642928376661,1.44335706,2509.1,2508.5,1.36353558]
[1642928378262,1.0,2509.6,2508.5,1.36353558]
[1642928378263,3.4031,2509.7,2508.5,1.36353558]
[1642928378521,3.4031,2509.7,2508.6,3.23580281]
[1642928378522,3.1031,2509.7,2508.6,3.23580281]
[1642928378918,56.284,2509.9,2509.2,1.092282]
[1642928379127,0.3342159,2509.8,2509.2,1.092282]
[1642928379321,0.3342159,2509.8,2509.2,1.392282]
[1642928379519,0.3342159,2509.8,2509.2,1.092282]
[1642928379721,49.946,2509.9,2509.2,1.092282]
[1642928379920,49.946,2509.9,2509.3,0.29916]
[1642928381221,49.946,2509.9,2509.4,1.3922615]
[1642928382161,49.946,2509.9,2509.4,1.0]
[1642928382556,49.946,2509.9,2509.3,1.29624]
[1642928382758,49.946,2509.9,2509.4,3.46768298]
[1642928382962,49.946,2509.9,2509.4,3.76768298]
[1642928382963,41.97059,2509.9,2509.4,3.76768298]
[1642928383161,33.99548,2509.9,2509.5,1.1976551]
[1642928383360,33.99548,2509.9,2509.8,2.0]
[1642928383563,500.0,2510.0,2509.9,11.97804628]
[1642928383564,457.56490802,2510.0,2509.9,11.97804628]
[1642928383766,437.65231266,2510.0,2509.9,10.53381964]
[1642928383962,435.68290598,2510.0,2509.9,10.75577336]
[1642928384168,419.73947648,2510.0,2509.9,18.02601765]
[1642928384361,415.87363648,2510.0,2509.9,14.75654429]
[1642928384562,399.92945428,2510.0,2509.9,38.36419939]
[1642928385164,383.98484918,2510.0,2509.9,38.36419939]
[1642928385362,383.98484918,2510.0,2509.9,40.36419939]
[1642928385562,383.98484918,2510.0,2509.9,16.95419939]
[1642928385766,368.03932428,2510.0,2509.9,11.80419939]
[1642928386011,368.03932428,2510.0,2509.9,11.7419551]
[1642928386211,368.03932428,2510.0,2509.9,2.9339551]
[1642928386411,368.03932428,2510.0,2509.9,2.7363]
[1642928386412,360.06426428,2510.0,2509.9,2.7363]
[1642928386610,360.06426428,2510.0,2509.9,3.199192]
[1642928386816,360.06426428,2510.0,2509.9,6.95681945]
[1642928386817,343.19925618,2510.0,2509.9,6.95681945]
[1642928387012,313.13098852,2510.0,2509.9,14.22706374]
[1642928387212,268.39241191,2510.0,2509.9,14.22706374]
[1642928387613,262.45789191,2510.0,2509.9,15.82706374]
[1642928387814,262.45789191,2510.0,2509.9,35.82773629]
[1642928387815,253.06218331,2510.0,2509.9,35.82773629]
[1642928388313,243.66623741,2510.0,2509.9,35.82773629]
[1642928388513,243.36053741,2510.0,2509.9,12.41773629]
[1642928389668,243.36053741,2510.0,2509.9,15.91433525]
[1642928389859,243.36053741,2510.0,2509.9,39.32433525]
[1642928390060,243.36053741,2510.0,2509.9,35.82773629]
[1642928390461,242.45733741,2510.0,2509.9,35.82773629]
[1642928391066,242.45733741,2510.0,2509.9,12.41773629]
[1642928392266,242.45733741,2510.0,2509.9,15.9383339]
[1642928392466,233.59803887,2510.0,2509.9,15.9383339]
[1642928392666,227.59015951,2510.0,2509.9,39.44665905]
[1642928392866,227.59015951,2510.0,2509.9,42.6526654]
[1642928393066,219.61924951,2510.0,2509.9,42.6526654]
[1642928393266,218.78493331,2510.0,2509.9,42.6526654]
[1642928393526,86.77215735,2510.0,2509.9,45.48556578]
[1642928393726,0.00262002,2511.3,2510.0,0.00352556]
[1642928393929,0.02345319,2513.1,2510.0,0.00352556]
[1642928393930,0.02345319,2513.1,2511.2,17.758]
[1642928394142,1.15754053,2514.4,2513.0,5.83]
[1642928394428,0.59015415,2516.6,2514.5,0.06224429]
[1642928394632,0.97940872,2517.7,2514.5,0.06224429]
[1642928394633,0.99451,2517.7,2514.9,7.22084311]
[1642928394833,1.2022561,2515.6,2515.0,4.46669696]
[1642928395031,1.0022561,2515.6,2515.5,7.47330138]
[1642928395225,8.0207,2517.8,2515.7,0.25249916]
[1642928395226,3.8575427,2517.6,2515.7,0.25249916]
[1642928395432,1.28297763,2517.7,2516.1,7.46049916]
[1642928395628,3.6049,2517.8,2516.1,8.54801894]
[1642928395629,0.24039349,2516.2,2516.1,8.54801894]
[1642928395830,0.23473052,2516.2,2516.1,12.70556164]
[1642928396025,5.78473052,2516.2,2516.1,8.29551894]
[1642928396227,5.78473052,2516.2,2516.1,12.34551894]
[1642928396433,1.189,2517.9,2516.1,12.34551894]
[1642928396434,1.01,2519.0,2516.1,16.20306164]
[1642928396629,0.13812721,2517.4,2516.7,0.25249916]
[1642928396828,0.13812721,2517.4,2516.9,0.25249916]
[1642928397033,0.0576593,2517.8,2517.0,5.227]
[1642928397304,0.10301,2518.0,2517.7,0.01221239]
[1642928397495,1.01,2519.0,2517.9,0.1976551]
[1642928397698,1.01,2519.0,2518.6,9.408]
[1642928397699,23.6046483,2518.7,2518.6,9.408]
[1642928397893,0.02000949,2521.1,2518.8,0.25249916]
[1642928397894,0.22,2520.0,2518.8,0.25249916]
[1642928398102,1.19880949,2522.0,2519.9,7.208]
[1642928398295,0.04999999,2521.9,2520.1,0.25249916]
[1642928398496,0.04999999,2521.9,2521.5,0.2763]
[1642928398693,1.19880949,2522.0,2521.5,0.2763]
[1642928398895,1.14880949,2522.0,2521.5,0.2763]
[1642928399092,1.14530071,2522.0,2521.5,0.2763]
[1642928399294,1.09530071,2522.0,2521.6,0.77528]
[1642928399494,0.4,2521.9,2521.6,1.33938444]
[1642928399695,0.4,2521.9,2521.8,8e-05]
[1642928399900,0.4,2521.9,2521.8,0.478]
[1642928400094,0.04999999,2522.8,2521.8,4.6356227]
[1642928400295,37.27032561,2524.0,2521.8,4.6356227]
[1642928400494,37.27032561,2524.0,2521.8,2.87638]
[1642928400695,37.27032561,2524.0,2521.9,3.8576227]
[1642928400908,1.4621907,2523.7,2522.0,0.478]
[1642928401108,37.27032561,2524.0,2522.0,0.478]
[1642928401109,37.27032561,2524.0,2522.1,3.99574266]
[1642928401310,37.03141195,2524.0,2522.4,0.06146125]
[1642928401511,3.8575427,2523.9,2522.1,0.13819996]
[1642928401710,0.271,2525.0,2522.1,0.61619996]
[1642928401711,0.19824,2523.8,2522.1,0.61619996]
[1642928401909,0.19824,2523.8,2522.3,0.01263737]
[1642928402211,1.1252611,2522.3,2522.2,0.3075427]
[1642928402424,0.19813,2523.5,2522.0,1.5]
[1642928402609,1.41513546,2522.8,2522.0,1.5]
[1642928403007,0.19813,2523.3,2522.0,1.5]
[1642928403411,1.51151509,2522.8,2522.0,1.5]
[1642928403612,1.37697491,2522.4,2522.0,1.5]
[1642928404009,1.14907819,2522.0,2521.8,0.3983]
[1642928404211,1.41596969,2522.1,2521.8,0.3983]
[1642928404410,1.41596969,2522.1,2521.9,0.60505946]
[1642928404657,0.19813,2523.0,2521.9,0.60505946]
[1642928404861,0.19813,2523.0,2521.4,1.00335946]
[1642928405071,1.52535638,2521.8,2521.4,1.00335946]
[1642928405262,0.19813,2522.7,2521.4,1.00335946]
[1642928405463,0.19813,2523.2,2521.4,1.05330946]
[1642928405663,0.01843288,2522.2,2521.6,0.60505946]
[1642928405867,1.15716126,2522.2,2521.6,0.65500946]
[1642928406162,1.38767743,2524.9,2521.6,0.60505946]
[1642928406163,1.1385625,2521.8,2521.6,0.60505946]
[1642928406363,0.19813,2522.8,2521.7,2.85610196]
[1642928406560,0.19813,2522.8,2521.7,1.71590196]
[1642928406764,0.19813,2522.8,2520.7,0.1585]
[1642928406962,0.478,2522.7,2520.8,3.63819996]
[1642928407162,0.478,2522.7,2520.8,3.0857]
[1642928407163,1.0,2522.3,2520.8,3.0857]
[1642928407363,1.0,2522.3,2519.9,23.09172928]
[1642928407364,1.17107419,2520.9,2520.0,0.478]
[1642928407672,4.73909854,2522.2,2520.0,5.40243484]
[1642928407673,1.64203779,2521.1,2520.0,5.40243484]
[1642928408062,1.53468344,2520.3,2520.0,3.484e-05]
[1642928408268,0.14852,2520.4,2519.0,4.07962323]
[1642928408517,5.55,2520.5,2518.3,22.70489771]
[1642928408518,1.5334317,2519.6,2518.3,22.70489771]
[1642928408721,3.57242322,2520.6,2519.0,0.062472]
[1642928408916,3.57242322,2520.6,2518.6,0.01211921]
[1642928408917,3.58230322,2520.6,2519.2,0.01258273]
[1642928409116,3.58230322,2520.6,2518.4,0.20067196]
[1642928409117,1.45135858,2518.8,2518.4,0.20067196]
[1642928409318,6.028,2520.5,2518.9,2.90271715]
[1642928409319,1.19909553,2519.5,2518.9,2.90271715]
[1642928409520,1.39680625,2518.7,2518.0,0.1587]
[1642928409722,0.3,2518.8,2517.4,3.42390322]
[1642928409723,1.3035397,2517.5,2517.4,3.42390322]
[1642928409920,0.1585,2518.7,2517.5,21.22150409]
[1642928410236,0.55262,2518.9,2517.6,3.62237322]
[1642928410237,0.01843288,2518.2,2517.6,3.62237322]
[1642928410418,0.01843288,2518.2,2518.1,4.81234688]
[1642928410618,0.4041,2518.9,2518.4,0.04395578]
[1642928410819,4.57110544,2518.5,2518.4,0.04395578]
[1642928411318,4.57110544,2518.5,2518.1,0.1588]
[1642928411319,5.35,2518.4,2518.1,0.1588]
[1642928411521,5.35,2518.4,2517.7,8.203e-05]
[1642928411522,1.41218818,2518.3,2517.7,8.203e-05]
[1642928411720,1.41218818,2518.3,2516.4,0.01234296]
[1642928411721,1.28430607,2517.1,2516.4,0.01234296]
[1642928411922,1.1756,2517.5,2516.5,0.34697997]
[1642928412160,1.1756,2517.5,2516.5,0.1589]
[1642928412358,0.35692,2517.4,2515.8,21.53469564]
[1642928412659,6.15,2517.3,2515.8,21.23759568]
[1642928412864,6.15,2517.3,2515.6,1.39191027]
[1642928412865,4.84647062,2517.2,2515.6,1.39191027]
[1642928413061,1.19587655,2515.9,2515.6,1.39191027]
[1642928413262,0.01843288,2515.8,2515.6,1.39191027]
[1642928413462,3.58280322,2517.0,2515.6,1.39191027]
[1642928413662,0.19842,2516.9,2515.6,1.39191027]
[1642928413865,0.19842,2516.9,2515.6,1.027e-05]
[1642928413866,0.1589,2516.8,2515.6,1.027e-05]
[1642928414067,0.52366983,2516.7,2515.6,1.027e-05]
[1642928414265,0.0010482,2516.5,2515.6,1.027e-05]
[1642928414466,1.35480229,2516.4,2515.6,1.027e-05]
[1642928414669,0.85868733,2516.2,2515.6,1.027e-05]
[1642928414868,0.85872297,2515.9,2515.6,1.027e-05]
[1642928415668,0.85872297,2515.9,2515.7,0.06103149]
[1642928415915,0.85872297,2515.9,2515.8,0.04988]
[1642928416112,0.85872297,2515.9,2515.7,0.7138451]
[1642928416113,0.85872297,2515.9,2515.7,0.69793149]
[1642928416313,0.87715585,2515.9,2515.7,0.1589]
[1642928416614,0.85872297,2515.9,2515.7,0.1589]
[1642928417412,5.6897202,2515.8,2515.7,0.1589]
[1642928417615,1.1397202,2515.8,2515.7,0.1589]
[1642928417816,4.55815308,2515.8,2515.7,0.1589]
[1642928418213,1.98777173,2515.9,2515.7,0.1589]
[1642928418416,0.47904797,2515.9,2515.6,1.027e-05]
[1642928418618,5.55,2515.7,2515.6,1.027e-05]
[1642928418816,0.159,2515.7,2515.6,1.027e-05]
[1642928419016,0.47904797,2515.9,2515.6,1.027e-05]
[1642928419317,0.47904797,2515.9,2515.8,0.04988]
[1642928419965,0.85868733,2515.9,2515.8,0.04988]
[1642928420168,1.3377353,2515.9,2515.6,0.07157881]
[1642928420370,1.3377353,2515.9,2515.2,0.06103384]
[1642928420576,2.77810901,2515.3,2515.0,7.48]
[1642928420968,0.159,2515.2,2515.0,7.48]
[1642928421768,2.77810901,2515.3,2515.0,7.48]
[1642928422171,2.75695938,2515.3,2515.0,7.48]
[1642928422372,2.75695938,2515.3,2514.6,0.159]
[1642928422571,0.23633373,2515.2,2514.5,13.5316986]
[1642928422772,0.19842,2515.1,2514.5,10.4918986]
[1642928422973,0.159,2515.0,2514.5,10.4918986]
[1642928423174,2.62853063,2514.9,2513.4,0.159]
[1642928423417,0.159,2514.8,2513.4,7.639]
[1642928423611,0.159,2515.1,2513.5,0.01286244]
[1642928423815,0.19842,2515.3,2513.6,0.20888]
[1642928423816,0.159,2515.2,2513.6,0.20888]
[1642928424011,0.19842,2515.1,2513.6,0.159]
[1642928424216,0.159,2515.0,2513.5,0.01286244]
[1642928424616,1.45536083,2513.8,2513.5,0.01286244]
[1642928424919,0.159,2515.0,2514.2,0.04698422]
[1642928424920,0.16162609,2515.0,2514.2,0.04698422]
[1642928425116,0.16162609,2515.0,2514.1,4.36608249]
[1642928425117,0.20104609,2515.0,2514.1,4.36608249]
[1642928425316,5.55,2514.1,2513.9,4.36608249]
[1642928425518,0.159,2514.0,2513.9,4.36608249]
[1642928425720,6.65309542,2514.0,2513.9,4.36608249]
[1642928426119,5.55,2513.9,2513.4,7.48]
[1642928426317,1.39521016,2513.4,2512.9,0.159]
[1642928426517,1.22912209,2513.4,2512.9,0.20888]
[1642928427169,1.28596907,2513.0,2512.9,0.159]
[1642928427565,1.52837992,2513.8,2512.9,0.159]
[1642928427764,1.1199482,2514.0,2512.9,0.159]
[1642928427765,1.43011812,2513.0,2512.9,0.159]
[1642928428165,1.43011812,2513.0,2512.5,7.48]
[1642928428965,0.159,2513.3,2512.6,3.01878707]
[1642928429171,0.0020964,2513.6,2512.8,0.06208788]
[1642928429368,0.0020964,2513.6,2513.0,0.03453268]
[1642928429766,0.0020964,2513.6,2513.1,0.04988]
[1642928429965,0.0020964,2513.6,2513.3,0.03368402]
[1642928430168,0.85973553,2514.2,2513.6,5.55]
[1642928430371,0.71539617,2514.4,2513.7,0.68688]
[1642928430570,2.3407482,2514.7,2514.0,0.0127913]
[1642928430571,0.0010482,2514.7,2514.0,0.0127913]
[1642928430767,0.1600482,2515.5,2514.2,5.55]
[1642928430768,0.0010482,2515.3,2514.2,5.55]
[1642928431023,0.0010482,2515.3,2514.3,0.68688]
[1642928431024,1.11071813,2515.3,2514.3,0.68688]
[1642928431219,1.11071813,2515.3,2514.4,1.0]
[1642928431220,2.67987755,2515.1,2514.4,1.0]
[1642928431419,1.2481,2515.1,2514.5,0.478]
[1642928431620,1.1008106,2514.9,2514.5,0.52788]
[1642928431821,1.2481,2515.1,2514.5,0.478]
[1642928432523,1.2481,2515.1,2514.3,0.20888]
[1642928432723,1.2481,2515.1,2514.3,1.15421]
[1642928433530,1.2481,2515.1,2514.4,0.04988]
[1642928433723,2.74488545,2515.1,2514.4,0.04988]
[1642928434325,1.2481,2515.1,2514.4,0.04988]
[1642928434676,1.2481,2515.1,2514.3,1.15421]
[1642928434873,1.2481,2515.1,2514.2,0.04988]
[1642928435070,0.159,2515.0,2514.0,3.2123697]
[1642928435270,0.159,2515.0,2514.0,0.0127913]
[1642928435471,0.159,2515.0,2514.1,0.9952]
[1642928435675,0.85868733,2514.5,2514.1,0.9952]
[1642928435872,0.85868733,2514.5,2514.1,1.04508]
[1642928435873,0.47904797,2514.3,2514.1,1.04508]
[1642928436077,0.47904797,2514.3,2514.1,1.99029]
[1642928436272,0.85868733,2514.5,2514.1,0.9952]
[1642928436473,0.85868733,2514.5,2514.0,0.0127913]
[1642928437076,0.85868733,2514.5,2514.1,0.99521]
[1642928437278,0.85868733,2514.5,2513.9,2.17853996]
[1642928437476,0.85868733,2514.5,2514.2,1.0]
[1642928437678,1.2491482,2515.1,2514.3,3.14716531]
[1642928437877,1.34177307,2515.0,2514.4,0.04988]
[1642928438076,1.2491482,2515.1,2514.4,0.04988]
[1642928438508,1.2491482,2515.1,2514.5,0.02611307]
[1642928438712,1.2491482,2515.1,2514.4,1.04508]
[1642928439714,1.2491482,2515.1,2514.3,1.15411]
[1642928439715,1.15949571,2514.8,2514.3,0.159]
[1642928439914,0.12937175,2514.8,2514.2,1.04988]
[1642928440117,0.12937175,2514.8,2513.9,2.14150063]
[1642928440118,1.33238609,2514.4,2513.9,1.97765996]
[1642928440324,1.33238609,2514.4,2513.5,3.1754721]
[1642928440325,0.01232004,2514.2,2513.5,1.15458]
[1642928440517,0.04399103,2514.1,2513.4,7.48]
[1642928440720,0.159,2514.0,2512.9,0.004]
[1642928440921,0.159,2514.1,2512.9,0.36412008]
[1642928441223,0.1600482,2514.1,2512.9,0.20512008]
[1642928441818,1.25475746,2513.5,2513.0,0.06139595]
[1642928442193,0.00105407,2513.5,2513.4,0.15124008]
[1642928442380,0.0010482,2513.5,2513.4,0.15124008]
[1642928442579,0.0010482,2513.5,2513.4,0.21263603]
[1642928442882,0.1600482,2514.1,2513.7,0.06493125]
[1642928443081,0.1600482,2514.1,2513.5,0.00209639]
[1642928443082,5.55,2514.0,2513.5,0.00209639]
[1642928443288,4.4598636,2513.6,2513.5,0.00209639]
[1642928443481,2.75126703,2513.6,2513.5,0.00209639]
[1642928443681,2.59226703,2513.6,2513.5,0.00209639]
[1642928444481,0.159,2514.0,2513.5,0.00209639]
[1642928444685,0.0031446,2514.1,2513.5,0.00209639]
[1642928445287,0.0041928,2514.1,2513.5,0.00209639]
[1642928445493,0.478,2515.2,2513.5,0.00209639]
[1642928445494,1.29871072,2520.3,2520.0,290.40180473]
[1642928445695,1.29871072,2520.3,2513.3,11.64179567]
[1642928445696,0.20798158,2515.1,2513.4,3.14532212]
[1642928445919,0.20798158,2515.1,2513.5,5.55]
[1642928445920,0.10714979,2514.8,2513.5,5.55]
[1642928446115,0.06978086,2515.0,2513.6,0.159]
[1642928446318,8.086e-05,2515.0,2514.5,0.02673999]
[1642928446522,0.83121004,2515.5,2514.5,5.55]
[1642928446523,0.14865,2515.4,2514.5,5.55]
[1642928446719,0.14865,2515.4,2514.7,0.1071]
[1642928447519,1.43009131,2514.9,2514.7,0.1071]
[1642928447720,1.19138008,2515.3,2515.1,0.07767849]
[1642928448019,0.14865,2515.4,2515.0,2.1786148]
[1642928448218,0.14865,2515.4,2515.1,0.04989797]
[1642928448420,0.14865,2515.4,2515.0,2.1786148]
[1642928449029,1.16727788,2515.3,2515.0,2.1786148]
[1642928449224,0.14865,2515.1,2515.0,0.91912169]
[1642928449672,0.30765,2515.1,2515.0,0.91912169]
[1642928451463,0.14865,2515.1,2515.0,0.91912169]
[1642928451669,0.159,2515.2,2515.0,0.91912169]
[1642928451865,1.32627788,2515.3,2515.0,0.91912169]
[1642928452867,1.47492788,2515.3,2515.0,0.91912169]
[1642928453065,0.14865,2515.1,2515.0,0.91912169]
[1642928456318,6.71517776,2515.1,2515.0,0.91912169]
[1642928456521,5.99865,2515.1,2515.0,0.91912169]
[1642928456720,6.45765,2515.1,2515.0,0.91912169]
[1642928457364,7.47417776,2515.1,2515.0,0.91912169]
[1642928457862,6.45765,2515.1,2515.0,2.169e-05]